[Event "13th Rheinland-Pfalz-Open 2023"]
[Site "Neuwied-Engers"]
[Date "2023.06.10"]
[Round "5.7"]
[White "Kotyk, Michael"]
[Black "Gramb, Marius"]
[Result "1-0"]
[Annotator "TA"]
[ECO "E46"]
[WhiteElo "2089"]
[BlackElo "2231"]
[PlyCount "135"]
[EventDate "2023.01.12"]
[EventType "swiss"]
[EventCountry "GER"]
[SourceTitle "playchess.com"]
[Source "ChessBase"]
[SourceQuality "1"]
[TimeControl "40/5400+30:1800+30"]

{[%evp 9,135,8,0,0,3,-8,-7,0,-12,0,0,-5,0,0,77,-23,58,45,70,39,57,43,91,0,28,10,12,10,34,22,37,28,27,5,1,-31,0,-24,0,-47,-44,-60,-34,-39,-36,-35,-34,-35,-62,-72,-75,-86,-79,-306,-256,-194,-37,-91,-25,-20,0,-358,579,542,537,515,776,568,595,604,583,563,821,750,870,822,810,805,732,550,824,810,2149,692,1197,1220,1164,1178,2149,2150,1969,2001,1805,1805,1763,1701,1624,1620,1614,933,29957,29956,29953,5716,29968,29969,29957,29961,29972,29971,29975,29976,29976,29973,29974,29972,29978,29973,29973,29974,29974,29974,29973,29974,29972,29973,6011,5902]} 1. d4 {[%emt 0:00:07]} Nf6 {[%emt 0:02:46]} 2. c4 {[%emt 0:00:02]} e6 {[%emt 0:00:05]} 3. Nc3 {[%emt 0:00:03]} Bb4 {[%emt 0:00:11][%cal Bf8b4,Bb4a5,Ba5c7][%mdl 32]} 4. e3 {[%emt 0:00:04]} O-O {[%emt 0:00:22]} 5. Nge2 {[%emt 0:00:06]} c6 {[%emt 0:00:33]} 6. a3 {[%emt 0:00:08] E46: Nimzo-Indian: Rubinstein: 4 e3 0-0 5 Ne2 without early Bd3.} Ba5 {[%emt 0:00:05]} 7. b4 {[%emt 0:00:08]} Bc7 {[%emt 0:00:11]} 8. e4 {[%emt 0:00:04] The position is equal.} d5 {[%emt 0:00:51]} 9. e5 {[%emt 0:00:05]} Nfd7 {[%emt 0:00:21]} 10. cxd5 {[%emt 0:00:06] The modern move.} exd5 {[%emt 0:03:14]} 11. f4 $1 {[%emt 0:00:09] [#]} Re8 $146 {[%emt 0:09:45]} (11... Qe8 $11 {keeps the balance.}) ({Predecessor:} 11... Qe7 12. Qc2 Bb6 13. Na4 f6 14. Nxb6 axb6 15. Bb2 b5 16. Ng3 fxe5 17. fxe5 Nb6 {0-1 Kuzubov,Y (2667)-Volokitin,A (2641) UKR-ch 88th Lutsk 2019 (5)}) 12. g3 {[%emt 0:05:58]} (12. Ng3 $1 $16) 12... Nf8 {[%emt 0:05:08]} (12... Nb6 $11) 13. Bg2 $14 {[%emt 0:03:59]} Be6 {[%emt 0:03:19]} 14. h3 {[%emt 0:07:06]} Nbd7 {[%emt 0:10:57]} 15. O-O {[%emt 0:01:27] And now f5 would win.} f5 {[%emt 0:00:33] [#]} (15... g6 $1 $14) 16. g4 {[%emt 0:14:51]} Qh4 {[%emt 0:11:09]} 17. gxf5 {[%emt 0:17:18]} (17. Qd3 $5 {[%cal Rg4f5]}) 17... Bxf5 {[%emt 0:01:19]} 18. Kh2 {[%emt 0:00:03]} Ne6 {[%emt 0:07:37]} (18... Re6 {simplifies} 19. Qe1 Qxe1 20. Rxe1 Ng6) 19. Ng3 {[%emt 0:00:13]} g6 {[%emt 0:02:14]} 20. Nxf5 {[%emt 0:16:51]} gxf5 {[%emt 0:01:44]} 21. Be3 {[%emt 0:04:09]} Nb6 {[%emt 0:03:26]} 22. Qf3 {[%emt 0:01:11]} Nc4 {[%emt 0:02:03]} 23. Ne2 {[%emt 0:01:21][%cal Ob4b5]} Kh8 {[%emt 0:05:47]} 24. Bf2 {[%emt 0:01:54]} (24. b5 $11 {feels stronger.}) 24... Qh6 $15 {[%emt 0:00:27]} 25. Qd3 {[%emt 0:00:08] Against Nd2} Rf8 {[%emt 0:05:26][%cal Be8f8,Bf8f7,Bf7g7][%mdl 32]} (25... Nxf4 26. Nxf4 Qxf4+ 27. Bg3 $11) (25... Rg8 {looks sharper.} 26. Bg3 Raf8 27. Rf3 b5) 26. Bg3 {[%emt 0:01:52]} Rf7 {[%emt 0:01:17]} 27. b5 {[%emt 0:01:01]} Rg8 {[%emt 0:01:06]} ({But not} 27... cxb5 28. Bxd5 Rg8 29. Bh4 $16 (29. Bxb7 Bxe5 30. fxe5 f4 $11)) 28. bxc6 {[%emt 0:00:02]} bxc6 {[%emt 0:00:24]} 29. Rac1 {[%emt 0:00:58]} Rfg7 {[%emt 0:09:12][%cal Og7g3]} 30. Rf3 {[%emt 0:06:22]} Bb6 {[%emt 0:04:54]} 31. Rxc4 $2 {[%emt 0:02:02]} (31. a4 $17 {only move.}) 31... dxc4 $19 {[%emt 0:00:01]} 32. Qxc4 {[%emt 0:00:05]} Nc7 $2 {[%emt 0:03:30]} (32... Rg6 $1 $19 {Strongly threatening ...Qg7.} 33. Qd3 Qg7) 33. Rc3 {[%emt 0:00:56] [#]} ({White should play} 33. Qc2 $15) 33... Nb5 {[%emt 0:03:03]} ({Better is} 33... Ba5 $1 $17 {[%cal Ra5c3]} 34. Rb3 (34. Qxc6 $2 {too greedy.} Rg6 $19) 34... Rg6) 34. Rd3 $11 {[%emt 0:01:30] Chess con chili.} Rg6 $1 {[%emt 0:01:51] ...Qg7 would be deadly.} 35. d5 $2 {[%emt 0:02:04][%mdl 8192] [#]} (35. a4 $11 Nc7 36. Bf3) 35... Nxa3 $4 {[%emt 0:00:22][%mdl 8192]} 36. Rxa3 $18 {[%emt 0:00:10]} cxd5 {[%emt 0:00:08]} 37. Bxd5 {[%emt 0:01:04]} Rd8 {[%emt 0:00:33]} (37... Rb8 $142 38. Rb3 Qf8) 38. Rd3 {[%emt 0:01:11]} Qf8 {[%emt 0:01:00]} 39. Bh4 {[%emt 0:00:27]} Rc8 {[%emt 0:00:27]} 40. Qb3 {[%emt 0:02:41]} Rb8 {[%emt 0:02:23]} 41. Qc3 {[%emt 0:32:16] aiming for Bf6+.} Bd8 {[%emt 0:19:33] Inhibits Bf6+.} 42. Bxd8 {[%emt 0:00:00]} Rxd8 {[%emt 0:01:48]} 43. e6+ {[%emt 0:00:00]} Qg7 {[%emt 0:06:28]} 44. Qxg7+ {[%emt 0:00:00]} Kxg7 {[%emt 0:01:39] [#]} 45. Re3 {[%emt 0:00:00]} Kf6 {[%emt 0:02:35]} (45... Re8 46. Nd4) 46. Re5 {[%emt 0:00:00]} (46. e7 $142 Re8 47. Ng3 Rxg3 48. Re6+ Kf7 49. Kxg3) 46... Rxd5 {[%emt 0:00:36]} 47. Rxd5 {[%emt 0:00:00] White threatens Nd4 and mate.} Kxe6 {[%emt 0:00:09][%mdl 4096] Endgame KRN-KR} 48. Ra5 {[%emt 0:00:00] Hoping for Nd4+.} Rg8 {[%emt 0:00:59]} 49. Nd4+ {[%emt 0:00:00]} Kd6 {[%emt 0:00:36]} 50. Nxf5+ {[%emt 0:00:00]} Ke6 {[%emt 0:00:27]} 51. Nd4+ {[%emt 0:00:00]} Kd6 {[%emt 0:00:03]} 52. Rxa7 {[%emt 0:00:00]} Kd5 {[%emt 0:00:17]} 53. Ne2 {[%emt 0:00:00]} Ke4 {[%emt 0:00:33]} 54. Ra3 {[%emt 0:00:00]} h5 {[%emt 0:00:45]} 55. Rg3 {[%emt 0:00:00]} Rb8 {[%emt 0:00:40]} 56. Kg2 {[%emt 0:00:00] Intending Rg5 and mate.} h4 {[%emt 0:00:35]} 57. Rf3 {[%emt 0:00:00]} Rb2 {[%emt 0:00:46]} 58. Kf2 {[%emt 0:00:00]} Kf5 {[%emt 0:00:27]} 59. Re3 {[%emt 0:00:00]} Rb1 {[%emt 0:00:35]} 60. Re5+ {[%emt 0:00:00]} Kg6 {[%emt 0:00:01]} 61. Rg5+ {[%emt 0:00:00]} Kh6 {[%emt 0:00:13]} 62. Rg8 {[%emt 0:00:00]} Rh1 {[%emt 0:00:47]} 63. Rh8+ {[%emt 0:00:00]} Kg7 {[%emt 0:00:06]} 64. Rxh4 {[%emt 0:00:00]} Rh2+ {[%emt 0:00:15]} 65. Kf3 {[%emt 0:00:00]} Kg6 {[%emt 0:00:17]} 66. Rg4+ {[%emt 0:00:00]} Kf6 {[%emt 0:00:06]} 67. Ng1 {[%emt 0:00:00]} Ra2 {[%emt 0:00:16]} 68. Kg3 {[%emt 0:00:00] An interesting game.   Weighted Error Value: White=0.61/Black=0.52} 1-0

[Event "13th Rheinland-Pfalz-Open 2023"]
[Site "Neuwied-Engers"]
[Date "2023.06.10"]
[Round "5.8"]
[White "Hinrichs, Paul"]
[Black "Wiley, Tom E"]
[Result "0-1"]
[Annotator "TA"]
[ECO "E55"]
[WhiteElo "2210"]
[BlackElo "2126"]
[PlyCount "108"]
[EventDate "2023.01.12"]
[EventType "swiss"]
[EventCountry "GER"]
[SourceTitle "playchess.com"]
[Source "ChessBase"]
[SourceQuality "1"]
[TimeControl "40/5400+30:1800+30"]

{[%evp 18,108,31,31,34,40,43,39,46,44,47,32,77,47,31,37,69,69,57,53,65,30,23,30,23,27,27,26,41,7,28,-553,-570,-568,-541,-508,-499,-495,-468,-479,-486,-480,-464,-473,-475,-495,-495,-495,-495,-494,-450,-592,-586,-630,-615,-614,-613,-635,-632,-857,-856,-1363,-1330,-12844,-5165,-29966,-29964,-29959,-795,-29950,-29951,-29936,-29942,-29964,-763,-737,-592,-592,-592,-592,-591,-634,-626,-29976,-29977,-29975,-29976,-29978,-29977,-29981,-29982,-29981,-29982]} 1. d4 {[%emt 0:00:03]} Nf6 {[%emt 0:00:07]} 2. c4 {[%emt 0:00:11]} e6 {[%emt 0:00:04]} 3. Nc3 {[%emt 0:00:06]} Bb4 {[%emt 0:00:04]} 4. e3 {[%emt 0:00:05]} O-O {[%emt 0:00:31]} 5. Bd3 {[%emt 0:00:09]} d5 {[%emt 0:00:30]} 6. Nf3 {[%emt 0:00:06]} dxc4 {[%emt 0:01:04]} 7. Bxc4 {[%emt 0:00:04]} c5 {[%emt 0:00:42]} 8. O-O {[%emt 0:01:51]} Nbd7 {[%emt 0:03:15]} 9. Qe2 {[%emt 0:08:12] 9.a3 is the modern continuation.} b6 {[%emt 0:01:10]} 10. Rd1 {[%emt 0:02:18][%cal Bf1d1,Bd1d5,Bd5e5][%mdl 32]} Bb7 {[%emt 0:02:35] E55: Nimzo-Indian: Rubinstein: Main Line: 7...dxc4 8 Bxc4 Nbd7.} 11. d5 {[%emt 0:05:26]} exd5 {[%emt 0:02:04]} 12. Nxd5 {[%emt 0:00:59]} Nxd5 {[%emt 0:00:43] White is slightly better.} 13. Bxd5 {[%emt 0:00:10]} Bxd5 {[%emt 0:04:12]} 14. Rxd5 {[%emt 0:00:20]} Qe7 {[%emt 0:00:14]} 15. a3 {[%emt 0:02:15]} Ba5 {[%emt 0:00:06]} 16. e4 {[%emt 0:06:13]} Nf6 {[%emt 0:07:49]} 17. Re5 {[%emt 0:00:33]} Qb7 {[%emt 0:04:14]} 18. Rb1 {[%emt 0:09:19] [#] Strongly threatening b4.} b5 $146 {[%emt 0:17:30]} ({Predecessor:} 18... Ng4 19. Rf5 Rae8 20. Rf4 Nf6 21. e5 Nd5 22. b4 Rd8 23. Bd2 Nxf4 24. Bxf4 cxb4 25. axb4 Bxb4 26. Rxb4 a5 27. Rb1 b5 28. g3 b4 29. Ng5 h6 {½-½ Lyukmanov,V (2416)-Ludwig,C (2369) W-ch33 sf03 email 2009}) 19. Rxc5 {[%emt 0:01:19]} a6 {[%emt 0:00:19][%cal Oa5b6]} 20. e5 {[%emt 0:08:09]} Bb6 $1 {[%emt 0:01:09]} 21. Rc2 {[%emt 0:14:53]} Ng4 {[%emt 0:04:26]} 22. Qe1 {[%emt 0:00:59]} Rae8 {[%emt 0:01:55]} 23. Re2 {[%emt 0:02:02] Threatening h3.} (23. h3 $5 {[%cal Rh3g4]} Nxe5 24. Nxe5 $11) 23... f6 {[%emt 0:01:22]} 24. exf6 $2 {[%emt 0:08:24][%mdl 8192] This move loses the game for White.} (24. h3 $11 {and White is okay.} Nxe5 25. Nxe5 Rxe5 26. Rxe5 {[%mdl 64] Remove Defender} fxe5 27. Be3) 24... Bxf2+ $19 {[%emt 0:03:47]} 25. Qxf2 {[%emt 0:01:24]} Nxf2 {[%emt 0:00:09]} 26. Rxf2 {[%emt 0:00:11]} Rxf6 {[%emt 0:02:31]} 27. Bd2 {[%emt 0:00:30]} Rfe6 {[%emt 0:00:59]} 28. Bc3 {[%emt 0:01:01]} Re2 {[%emt 0:01:17]} 29. Rd1 {[%emt 0:00:22]} Qb6 {[%emt 0:09:44]} ({But not} 29... Rxf2 $2 30. Kxf2 Qa7+ 31. Bd4 $19) 30. Bd4 {[%emt 0:00:30]} Qg6 {[%emt 0:00:31]} 31. Bc3 {[%emt 0:02:15]} Rxf2 {[%emt 0:04:15]} 32. Kxf2 {[%emt 0:00:57]} Qf5 {[%emt 0:00:30]} 33. h3 {[%emt 0:01:52]} h6 {[%emt 0:02:05]} 34. Kf1 {[%emt 0:02:12]} Re3 {[%emt 0:04:02]} 35. Rd2 {[%emt 0:09:22] [#]} Rxc3 $1 {[%emt 0:02:34]} 36. bxc3 {[%emt 0:00:07][%mdl 4096] Endgame KQ-KRN} Qc5 {[%emt 0:00:09]} 37. Rd8+ {[%emt 0:00:26]} Kh7 {[%emt 0:00:25]} 38. Ra8 {[%emt 0:00:11]} Qxa3 {[%emt 0:00:24]} 39. h4 {[%emt 0:00:30]} Qxc3 {[%emt 0:02:47]} 40. Rxa6 {[%emt 0:00:28]} b4 {[%emt 0:00:10] ( -> ...Qd3+)} 41. Rb6 {[%emt 0:30:07]} Qd3+ {[%emt 0:43:26]} 42. Kf2 {[%emt 0:01:24]} b3 {[%emt 0:00:44]} (42... Qc2+ $142 43. Kf1 Qc1+ 44. Ke2 Qc7 45. Rxb4 Qe7+ 46. Kf2 Qxb4 47. Ke3 Qc5+ 48. Ke2 Qc2+ 49. Nd2 Kg6 50. g3 Kf5 51. Ke1 Qc3 52. Ke2 Qxg3 53. h5 Kf4 54. Kd1 Qd3 55. Ke1 Qc3 56. Ke2 Qc2 57. Ke1 Ke3 58. Nf1+ Kd3 59. Nd2 Qxd2+ 60. Kf1 Qh2 61. Ke1 Qg1#) 43. Rb7 {[%emt 0:01:09]} Qc2+ {[%emt 0:00:33][%mdl 64] [#] Skewer} 44. Ke3 {[%emt 0:00:07]} b2 {[%emt 0:00:00]} 45. Nd2 {[%emt 0:00:00]} Qc3+ {[%emt 0:00:00]} (45... Qc8 $142 46. Rb3 Qe6+ 47. Kf2 Qxb3 {[%mdl 64] Deflection, Promotion} 48. Nxb3 b1=Q 49. Nd4 Qb6 50. Ke3 Qc5 51. Ke4 Qe7+ 52. Kd3 Qa3+ 53. Ke4 Qa8+ 54. Kf4 Qxg2 55. Nf5 Kg6 56. Ne3 Qf2+ 57. Ke4 Qxh4+ 58. Ke5 Qg5+ 59. Ke4 Qh4+ 60. Kd3 h5 61. Nd5 Qh3+ 62. Kd4 Qf3 63. Ke5 h4 64. Nf4+ Kf7 65. Ne6 Qf6+ 66. Kd6 Qxe6+ 67. Kc5 h3 68. Kd4 h2 69. Kd3 h1=Q 70. Kd2 Qhd5+ 71. Kc1 Qe2 72. Kb1 Qh1#) 46. Ke2 {[%emt 0:00:00]} Qc6 {[%emt 0:00:00]} 47. Rxb2 {[%emt 0:00:00]} Qxg2+ {[%emt 0:00:00]} 48. Ke3 {[%emt 0:00:00]} Qg1+ {[%emt 0:00:00]} 49. Ke2 {[%emt 0:00:00]} Qh2+ {[%emt 0:00:00]} 50. Kf1 {[%emt 0:00:00]} Qf4+ {[%emt 0:00:00] Black mates.} 51. Kg2 {[%emt 0:00:00]} Qd4 {[%emt 0:00:00]} 52. Rc2 {[%emt 0:00:00]} Qg4+ {[%emt 0:00:00]} 53. Kh2 {[%emt 0:00:00]} Qxh4+ {[%emt 0:00:00]} 54. Kg2 {[%emt 0:00:00]} Qg5+ {[%emt 0:00:00] Weighted Error Value: White=0.89/Black=0.34} 0-1

[Event "13th Rheinland-Pfalz-Open 2023"]
[Site "Neuwied-Engers"]
[Date "2023.06.10"]
[Round "5.9"]
[White "Baerwinkel, Tobias"]
[Black "Yankelevich, Michael"]
[Result "1-0"]
[Annotator "TA"]
[ECO "D02"]
[WhiteElo "2324"]
[BlackElo "2031"]
[PlyCount "106"]
[EventDate "2023.01.12"]
[EventType "swiss"]
[EventCountry "GER"]
[SourceTitle "playchess.com"]
[Source "ChessBase"]
[SourceQuality "1"]
[TimeControl "40/5400+30:1800+30"]

{[%evp 10,106,25,25,31,27,24,7,29,42,39,20,54,62,60,75,62,64,62,44,88,0,0,0,0,-17,78,85,87,82,79,87,88,75,87,81,114,68,146,128,174,169,177,159,153,153,154,137,130,129,131,136,156,150,153,131,168,148,187,187,239,150,140,129,125,148,153,147,137,140,115,120,136,116,111,125,125,126,397,375,399,393,379,347,475,475,504,475,472,472,464,461,461,454,443,443,414,383,1006]} 1. d4 {[%emt 0:00:01]} d5 {[%emt 0:06:59]} 2. c4 {[%emt 0:00:09]} e6 {[%emt 0:00:30]} 3. Nf3 {[%emt 0:00:09]} Nf6 {[%emt 0:00:32]} 4. g3 {[%emt 0:00:14]} Bd6 {[%emt 0:00:19]} 5. Bg2 {[%emt 0:02:40]} O-O {[%emt 0:03:01]} 6. O-O {[%emt 0:02:12]} Nc6 {[%emt 0:03:03] D02: 1 d4 d5 2 Nf3 sidelines, including 2...Nf6 3 g3 and 2...Nf6 3 Bf4.} 7. Nbd2 {[%emt 0:04:30] 7.b3 is setting a new trend.} a5 {[%emt 0:02:21]} 8. Qc2 {[%emt 0:04:58] [#]} Re8 $146 {[%emt 0:06:55] The position is equal.} (8... Nb4 $5 {[%cal Rb4c2]} 9. Qb1 Be7 $11) ({Predecessor:} 8... Nb4 9. Qc3 c5 10. cxd5 cxd4 11. Nxd4 Nfxd5 12. Qb3 Bc5 13. a3 Bxd4 14. axb4 Nxb4 {½-½ Mchedlishvili,M (2595)-Yakubboev,N (2630) Sharjah Masters 5th 2022 (7)}) 9. e4 {[%emt 0:03:48]} dxe4 {[%emt 0:01:02]} 10. Nxe4 {[%emt 0:00:59]} Nxe4 {[%emt 0:03:06]} 11. Qxe4 {[%emt 0:00:07]} e5 {[%emt 0:00:54] aiming for ...exd4.} 12. Ng5 $1 {[%emt 0:02:21]} g6 {[%emt 0:00:58]} 13. Qh4 {[%emt 0:00:44]} h5 {[%emt 0:00:33]} 14. Bd5 {[%emt 0:03:03]} Rf8 {[%emt 0:05:02]} 15. dxe5 {[%emt 0:07:59] White is more active.} (15. f4 $1 $16 {[%cal Rf4e5]} Nxd4 16. fxe5) 15... Nxe5 $11 {[%emt 0:01:24]} 16. Bf4 $40 {[%emt 0:01:58][%mdl 128] White attacks.} Qf6 {[%emt 0:03:49]} 17. Rad1 {[%emt 0:15:16][%cal Oc4c5]} Be6 {[%emt 0:14:47]} (17... c6 $11 {keeps the balance.} 18. Bg2 Nxc4) 18. Nxe6 $16 {[%emt 0:16:14][%mdl 64] Discovered Attack} (18. Bxb7 Rab8 19. Bd5 Bxd5 20. Rxd5 c6 21. Rxa5 (21. Bxe5 Bxe5 22. Rxa5 Rxb2 $11) 21... Rxb2 $11) 18... Qxh4 {[%emt 0:03:01]} 19. gxh4 {[%emt 0:00:06]} fxe6 {[%emt 0:00:14]} 20. Bxe6+ {[%emt 0:00:46]} (20. Bxb7 Rab8 21. Bxe5 Bxe5 $17) 20... Kg7 {[%emt 0:00:39] [#]} 21. Bg3 {[%emt 0:01:37][%cal Oc4c5] A strong pair of Bishops.} Rae8 {[%emt 0:04:04]} 22. Bd5 {[%emt 0:00:20]} b6 {[%emt 0:00:09]} 23. Kg2 {[%emt 0:01:20]} ({White should try} 23. Rfe1 $16) 23... Bc5 {[%emt 0:07:54]} (23... Ng4 $14) 24. Rfe1 {[%emt 0:02:41]} Ng4 {[%emt 0:00:15] [#]} (24... Bd6 $16 25. Re4 Ng4) 25. Bf3 $1 $18 {[%emt 0:01:53]} ({Stronger than} 25. Bxc7 Rxf2+ 26. Kg3 Ne3 $15) 25... Rxe1 {[%emt 0:01:47]} 26. Rxe1 {[%emt 0:00:03]} Nh6 {[%emt 0:00:49]} 27. Be5+ {[%emt 0:02:51]} Kh7 {[%emt 0:01:17]} 28. Bxc7 {[%emt 0:00:09]} Nf5 {[%emt 0:00:16]} 29. Bg3 {[%emt 0:00:15]} Rd8 {[%emt 0:02:54]} 30. Bd5 {[%emt 0:03:17]} Ne7 {[%emt 0:26:56]} 31. Re5 {[%emt 0:02:34]} Nf5 {[%emt 0:00:00]} 32. b3 {[%emt 0:06:32]} Rf8 {[%emt 0:00:00]} 33. Re2 {[%emt 0:02:36]} Rd8 {[%emt 0:00:00]} 34. Re6 {[%emt 0:04:35]} Rf8 {[%emt 0:00:00]} (34... Nxg3 $142 35. hxg3 (35. fxg3 Rd6 $16) 35... Rd6) 35. f3 {[%emt 0:02:44] And now Be4 would win.} Ne3+ {[%emt 0:00:00]} 36. Kh3 {[%emt 0:00:06] Be4 would be deadly.} Nxd5 {[%emt 0:00:00]} 37. cxd5 {[%emt 0:00:03] Strongly threatening d6.} Rxf3 $16 {[%emt 0:00:00][%mdl 4096] Endgame KRB-KRB} 38. d6 {[%emt 0:01:57] d7 is the strong threat.} Rd3 {[%emt 0:00:00]} 39. Kg2 {[%emt 0:00:08]} Kg7 {[%emt 0:00:00]} 40. Be5+ {[%emt 0:00:24]} Kf7 {[%emt 0:00:00]} 41. Rf6+ {[%emt 0:31:35]} Ke8 {[%emt 0:24:47]} 42. Rxg6 {[%emt 0:00:46]} Kd7 {[%emt 0:00:04][%cal Rc5d6]} 43. Rh6 {[%emt 0:00:00]} b5 $2 {[%emt 0:00:00][%mdl 8192] This costs Black the game.} (43... Bxd6 $16 {might work better.} 44. Bxd6 (44. Rxh5 Rd2+ 45. Kh3 Rxa2 $16) 44... Rxd6 45. Rxh5 Rd2+ 46. Kh3 Rxa2) 44. Rxh5 $18 {[%emt 0:00:00]} a4 {[%emt 0:00:00]} 45. Bg3 {[%emt 0:00:00]} Bxd6 {[%emt 0:00:00]} 46. Rxb5 {[%emt 0:00:00]} a3 {[%emt 0:00:00]} 47. Bxd6 {[%emt 0:00:00]} Kxd6 {[%emt 0:00:00] KR-KR} 48. Rf5 {[%emt 0:00:00]} Ke6 {[%emt 0:00:00]} 49. Rf3 {[%emt 0:00:00]} ({Less strong is} 49. Rf2 Ke7 50. h3 Ke6 $18) 49... Rd2+ {[%emt 0:00:00]} 50. Rf2 {[%emt 0:00:00]} Rd3 {[%emt 0:00:00]} 51. h5 {[%emt 0:00:00][%cal Bh4h5,Bh5h6][%mdl 32] Hoping for h6.} Rd5 {[%emt 0:00:00]} 52. h6 {[%emt 0:00:00] Threatens to win with Rf3.} Rh5 {[%emt 0:00:00]} 53. Rf4 {[%emt 0:00:00]} Kd5 $2 {[%emt 0:16:39] Weighted Error Value: White=0.09 (flawless) /Black=0.26 (precise)} (53... Rxh6 54. h4 Rh8) 1-0

[Event "13th Rheinland-Pfalz-Open 2023"]
[Site "Neuwied-Engers"]
[Date "2023.06.10"]
[Round "5.10"]
[White "Karsay, Pascal"]
[Black "Roos, Christoph"]
[Result "1/2-1/2"]
[Annotator "TA"]
[ECO "A34"]
[WhiteElo "2338"]
[BlackElo "2038"]
[PlyCount "63"]
[EventDate "2023.01.12"]
[EventType "swiss"]
[EventCountry "GER"]
[SourceTitle "playchess.com"]
[Source "ChessBase"]
[SourceQuality "1"]
[TimeControl "40/5400+30:1800+30"]

{[%evp 21,63,39,70,69,62,64,76,57,61,57,58,50,73,58,86,51,63,28,25,35,43,17,55,0,0,3,52,0,0,0,5,0,0,-43,0,0,0,-6,-6,-8,0,0,581,570]} 1. Nf3 {[%emt 0:00:03]} c5 {[%emt 0:01:12]} 2. c4 {[%emt 0:00:15]} Nf6 {[%emt 0:00:10]} 3. Nc3 {[%emt 0:00:11]} Nc6 {[%emt 0:00:44]} 4. g3 {[%emt 0:00:12]} e6 {[%emt 0:03:54]} 5. Bg2 {[%emt 0:00:13]} Be7 {[%emt 0:00:27]} 6. O-O {[%emt 0:00:12]} O-O {[%emt 0:00:08]} 7. d4 {[%emt 0:00:14]} cxd4 {[%emt 0:02:02]} 8. Nxd4 {[%emt 0:00:07]} d5 {[%emt 0:12:43]} 9. cxd5 {[%emt 0:00:55]} Nxd5 {[%emt 0:05:34]} 10. Nxd5 {[%emt 0:04:17]} exd5 {[%emt 0:02:17]} 11. Be3 {[%emt 0:00:20]} Bf6 {[%emt 0:10:41]} 12. Rc1 {[%emt 0:01:37] A34: Symmetrical English: 2 Nc3, lines with ...d5.} Nxd4 {[%emt 0:04:25]} 13. Bxd4 {[%emt 0:00:06]} Be6 {[%emt 0:01:19]} 14. Qd2 {[%emt 0:00:27] White is better.} Bxd4 {[%emt 0:04:42]} 15. Qxd4 {[%emt 0:00:06]} Qa5 {[%emt 0:00:16]} 16. a3 {[%emt 0:02:41]} Rac8 {[%emt 0:01:52]} 17. Rfd1 {[%emt 0:01:52] [#]} g6 $146 {[%emt 0:06:54]} ({Predecessor:} 17... Rxc1 18. Rxc1 Rd8 19. Qc3 Qb5 20. e3 f6 21. Qd4 b6 22. e4 Qd7 23. exd5 Bxd5 24. Qxd5+ Qxd5 25. Bxd5+ Rxd5 {½-½ Duncanson,H (2118)-Agafonov,Y (2103) BCF-chT1 2021 (4NCL) online 2020 (7.23)}) 18. e3 {[%emt 0:08:18] White is more active.} (18. Bxd5 $2 {perishes.} Rxc1 19. Rxc1 Bxd5 $19) (18. Rxc8 {simplifies} Rxc8 19. Bxd5 Bxd5 20. Qxd5 Qxd5 21. Rxd5 Rc2 22. Rb5) 18... Rc6 {[%emt 0:02:49]} 19. Rxc6 {[%emt 0:04:21]} (19. Bxd5 $2 {loses.} Rxc1 20. Rxc1 Bxd5 $19) 19... bxc6 {[%emt 0:00:12] Black is weak on the dark squares} 20. Rc1 {[%emt 0:00:37]} Rb8 {[%emt 0:03:33]} 21. h4 {[%emt 0:04:01]} (21. Rxc6 {gets mated.} Qe1+ 22. Bf1 Bh3 23. Qd3 Rxb2 24. Kh1 Qxf2) (21. Bf3 $5 {[%cal Rc1c6]}) 21... Qb6 {[%emt 0:02:15]} (21... Rb3 {feels hotter.} 22. h5 gxh5 23. Qf6 Qb6) 22. Qxb6 {[%emt 0:08:20]} (22. b4 $14) 22... Rxb6 $14 {[%emt 0:00:16][%mdl 4096] Endgame KRB-KRB} 23. b4 {[%emt 0:00:04]} Kf8 {[%emt 0:02:46]} (23... Ra6 $1 $11) 24. Rc5 {[%emt 0:01:33]} ({White should play} 24. Bf1 $14) 24... Ra6 $1 $11 {[%emt 0:05:46]} 25. Rc3 {[%emt 0:00:30]} Ke7 {[%emt 0:01:30]} 26. Kf1 {[%emt 0:02:54]} Kd6 {[%emt 0:01:24]} 27. Ke2 {[%emt 0:00:14]} Rb6 {[%emt 0:01:01][%cal Oa7a5]} (27... Ra4 $5 {[%cal Ra7a5]}) 28. e4 {[%emt 0:08:10]} a5 {[%emt 0:05:47]} 29. bxa5 {[%emt 0:00:24]} Ra6 {[%emt 0:00:15]} 30. exd5 {[%emt 0:00:37]} Bxd5 {[%emt 0:03:17]} 31. Bf3 {[%emt 0:52:09]} Be4 $2 {[%mdl 8192] [#]} 32. Bxe4 {[%emt 0:00:00][%mdl 32768] Weighted Error Value: White=0.19 (very precise) /Black=0.39.  Loses game:     	---       	Black=1      Missed win:     	---       	---        Mistake:       	White=2     	Black=1      Inaccurate:     	White=4     	Black=3      OK:         	White=5     	Black=9      Best:        	White=1     	---        Strong:       	---       	Black=1      Brilliant:      	---       	---       . An unexpected result.} 1/2-1/2